fUSD/lending_fUSD_20260517
["ID","MTS","AMOUNT","RATE_DAILY","PERIOD"]
[422484229,1778988647000,-3751.26317807,0.00034181,2]
[422484239,1778988647000,-160.0,0.000342,21]
[422484237,1778988647000,-547.0,0.00034198,30]
[422484230,1778988647000,-505.4,0.00034182,7]
[422484231,1778988647000,-150.0,0.0003419,2]
[422484226,1778988647000,-160.0,0.00034167,30]
[422484227,1778988647000,-154.0,0.00034167,30]
[422484225,1778988647000,-159.0,0.00034167,30]
[422484235,1778988647000,-157.0,0.00034198,30]
[422484317,1778988648000,-388.48208283,0.00034726,4]
[422484308,1778988648000,-589.0,0.00034726,4]
[422484301,1778988648000,-589.0,0.00034726,4]
[422484304,1778988648000,-589.0,0.00034726,4]
[422484296,1778988648000,-589.0,0.00034726,4]
[422484297,1778988648000,-500.0,0.00034726,4]
[422484300,1778988648000,-500.0,0.00034726,4]
[422484303,1778988648000,-500.0,0.00034726,4]
[422484299,1778988648000,-500.0,0.00034726,4]
[422484306,1778988648000,-150.0,0.00034726,4]
[422484314,1778988648000,-500.0,0.00034726,4]
[422484313,1778988648000,-218.63431577,0.00034726,4]
[422484311,1778988648000,-500.0,0.00034726,4]
[422484312,1778988648000,-150.0,0.00034726,4]
[422484310,1778988648000,-150.0,0.00034726,4]
[422484307,1778988648000,-500.0,0.00034726,4]
[422484315,1778988648000,-500.0,0.00034726,4]
[422484316,1778988648000,-169.56546123,0.00034726,4]
[422484318,1778988648000,-589.0,0.00034726,4]
[422484320,1778988648000,-500.0,0.00034726,4]
[422484319,1778988648000,-500.0,0.00034726,4]
[422484321,1778988648000,-500.0,0.00034726,4]
[422484302,1778988648000,-500.0,0.00034726,4]
[422484309,1778988648000,-500.0,0.00034726,4]
[422484305,1778988648000,-500.0,0.00034726,4]
[422484280,1778988648000,-589.0,0.00034726,4]
[422484295,1778988648000,-500.0,0.00034726,4]
[422484323,1778988648000,-150.0,0.00034726,4]
[422484271,1778988648000,-3751.26317807,0.00034501,2]
[422484273,1778988648000,-3751.26317807,0.00034575,2]
[422484283,1778988648000,-150.0,0.00034726,4]
[422484274,1778988648000,-549.0,0.00034613,10]
[422484272,1778988648000,-3751.26317807,0.00034504,2]
[422484275,1778988648000,-3751.26317807,0.00034626,2]
[422484281,1778988648000,-589.0,0.00034726,4]
[422484276,1778988648000,-3751.26317807,0.00034644,2]
[422484277,1778988648000,-774.94,0.000347,7]
[422484282,1778988648000,-589.0,0.00034726,4]
[422484298,1778988648000,-589.0,0.00034726,4]
[422484279,1778988648000,-589.0,0.00034726,4]
[422484284,1778988648000,-589.0,0.00034726,4]
[422484286,1778988648000,-589.0,0.00034726,4]
[422484285,1778988648000,-150.0,0.00034726,4]
[422484287,1778988648000,-150.0,0.00034726,4]
[422484288,1778988648000,-202.91860067,0.00034726,4]
[422484289,1778988648000,-589.0,0.00034726,4]
[422484291,1778988648000,-589.0,0.00034726,4]
[422484292,1778988648000,-296.25379635,0.00034726,4]
[422484293,1778988648000,-589.0,0.00034726,4]
[422484290,1778988648000,-589.0,0.00034726,4]
[422484294,1778988648000,-589.0,0.00034726,4]
[422484278,1778988648000,-3751.26317807,0.00034703,2]
[422484326,1778988648000,-589.0,0.00034726,4]
[422484333,1778988648000,-261.9823142,0.00034726,2]
[422484322,1778988648000,-500.0,0.00034726,4]
[422484364,1778988648000,-150.0,0.00034726,2]
[422484365,1778988648000,-1923.0,0.00034726,4]
[422484353,1778988648000,-594.56685334,0.00034726,4]
[422484355,1778988648000,-999.0,0.00034726,4]
[422484356,1778988648000,-500.0,0.00034726,4]
[422484363,1778988648000,-1923.0,0.00034726,4]
[422484361,1778988648000,-399.51761842,0.00034726,4]
[422484360,1778988648000,-999.0,0.00034726,4]
[422484357,1778988648000,-999.0,0.00034726,4]
[422484358,1778988648000,-1923.0,0.00034726,4]
[422484359,1778988648000,-500.0,0.00034726,4]
[422484354,1778988648000,-500.0,0.00034726,4]
[422484362,1778988648000,-999.0,0.00034726,4]
[422484372,1778988648000,-1923.0,0.00034726,4]
[422484367,1778988648000,-1923.0,0.00034726,4]
[422484378,1778988648000,-999.0,0.00034726,4]
[422484368,1778988648000,-999.0,0.00034726,4]
[422484377,1778988648000,-1923.0,0.00034726,4]
[422484373,1778988648000,-500.0,0.00034726,4]
[422484371,1778988648000,-999.0,0.00034726,4]
[422484369,1778988648000,-1923.0,0.00034726,4]
[422484374,1778988648000,-999.0,0.00034726,4]
[422484375,1778988648000,-1923.0,0.00034726,4]
[422484328,1778988648000,-150.0,0.00034726,4]
[422484370,1778988648000,-229.8585841,0.00034726,4]
[422484349,1778988648000,-589.0,0.00034726,4]
[422484366,1778988648000,-999.0,0.00034726,4]
[422484346,1778988648000,-500.0,0.00034726,4]
[422484350,1778988648000,-589.0,0.00034726,4]
[422484324,1778988648000,-250.0,0.00034726,2]
[422484327,1778988648000,-250.0,0.00034726,2]
[422484325,1778988648000,-500.0,0.00034726,4]
[422484340,1778988648000,-150.0,0.00034726,4]
[422484334,1778988648000,-150.0,0.00034726,4]
[422484330,1778988648000,-250.0,0.00034726,2]
[422484332,1778988648000,-500.0,0.00034726,4]
[422484329,1778988648000,-500.0,0.00034726,4]
[422484376,1778988648000,-500.0,0.00034726,4]
[422484335,1778988648000,-150.0,0.00034726,4]
[422484337,1778988648000,-150.0,0.00034726,4]
[422484331,1778988648000,-150.0,0.00034726,4]
[422484338,1778988648000,-150.0,0.00034726,4]
[422484345,1778988648000,-500.0,0.00034726,4]
[422484347,1778988648000,-520.43657618,0.00034726,4]
[422484351,1778988648000,-589.0,0.00034726,4]
[422484344,1778988648000,-589.0,0.00034726,4]
[422484352,1778988648000,-589.0,0.00034726,4]
[422484348,1778988648000,-354.74373799,0.00034726,4]
[422484343,1778988648000,-278.35356473,0.00034726,4]
[422484341,1778988648000,-150.0,0.00034726,4]
[422484339,1778988648000,-500.0,0.00034726,4]
[422484336,1778988648000,-500.0,0.00034726,4]
[422484342,1778988648000,-164.15228212,0.00034726,4]
[422484430,1778988649000,-500.0,0.00034726,4]
[422484419,1778988649000,-500.0,0.00034726,4]
[422484428,1778988649000,-540.0,0.00034726,4]
[422484421,1778988649000,-181.11697857,0.00034726,4]
[422484418,1778988649000,-540.0,0.00034726,4]
[422484429,1778988649000,-500.0,0.00034726,4]
[422484407,1778988649000,-540.0,0.00034726,4]
[422484409,1778988649000,-500.0,0.00034726,4]
[422484410,1778988649000,-540.0,0.00034726,4]
[422484416,1778988649000,-1923.0,0.00034726,4]
[422484412,1778988649000,-540.0,0.00034726,4]
[422484420,1778988649000,-540.0,0.00034726,4]
[422484417,1778988649000,-500.0,0.00034726,4]
[422484422,1778988649000,-540.0,0.00034726,4]
[422484431,1778988649000,-500.0,0.00034726,4]
[422484425,1778988649000,-540.0,0.00034726,4]
[422484423,1778988649000,-540.0,0.00034726,4]
[422484427,1778988649000,-540.0,0.00034726,4]
[422484426,1778988649000,-1923.0,0.00034726,4]
[422484432,1778988649000,-540.0,0.00034726,4]
[422484433,1778988649000,-500.0,0.00034726,4]
[422484442,1778988649000,-500.0,0.00034726,4]
[422484443,1778988649000,-183.06430618,0.00034726,4]
[422484435,1778988649000,-999.0,0.00034726,4]
[422484441,1778988649000,-500.0,0.00034726,4]
[422484440,1778988649000,-500.0,0.00034726,4]
[422484434,1778988649000,-500.0,0.00034726,4]
[422484413,1778988649000,-500.0,0.00034726,4]
[422484424,1778988649000,-999.0,0.00034726,4]
[422484408,1778988649000,-1923.0,0.00034726,4]
[422484391,1778988649000,-150.0,0.00034726,4]
[422484414,1778988649000,-540.0,0.00034726,4]
[422484380,1778988649000,-1923.0,0.00034726,4]
[422484379,1778988649000,-500.0,0.00034726,4]
[422484382,1778988649000,-500.0,0.00034726,4]
[422484390,1778988649000,-1923.0,0.00034726,4]
[422484436,1778988649000,-1923.0,0.00034726,4]
[422484392,1778988649000,-999.0,0.00034726,4]
[422484384,1778988649000,-999.0,0.00034726,4]
[422484383,1778988649000,-1923.0,0.00034726,4]
[422484381,1778988649000,-999.0,0.00034726,4]
[422484385,1778988649000,-333.81947397,0.00034726,4]
[422484389,1778988649000,-540.0,0.00034726,4]
[422484388,1778988649000,-999.0,0.00034726,4]
[422484386,1778988649000,-540.0,0.00034726,4]
[422484387,1778988649000,-1923.0,0.00034726,4]
[422484403,1778988649000,-150.0,0.00034726,4]
[422484395,1778988649000,-540.0,0.00034726,4]
[422484393,1778988649000,-1923.0,0.00034726,4]
[422484397,1778988649000,-1923.0,0.00034726,4]
[422484394,1778988649000,-150.0,0.00034726,4]
[422484396,1778988649000,-999.0,0.00034726,4]
[422484398,1778988649000,-540.0,0.00034726,4]
[422484400,1778988649000,-999.0,0.00034726,4]
[422484399,1778988649000,-150.0,0.00034726,4]
[422484402,1778988649000,-540.0,0.00034726,4]
[422484401,1778988649000,-1923.0,0.00034726,4]
[422484415,1778988649000,-999.0,0.00034726,4]
[422484404,1778988649000,-500.0,0.00034726,4]
[422484405,1778988649000,-999.0,0.00034726,4]
[422484406,1778988649000,-150.0,0.00034726,4]
[422484411,1778988649000,-235.03207444,0.00034726,4]
[422484439,1778988649000,-540.0,0.00034726,4]
[422484438,1778988649000,-500.0,0.00034726,4]
[422484437,1778988649000,-500.0,0.00034726,4]
[422484477,1778988649000,-614.0,0.00034726,2]
[422484476,1778988649000,-614.0,0.00034726,2]
[422484482,1778988649000,-614.0,0.00034726,2]
[422484481,1778988649000,-614.0,0.00034726,2]
[422484479,1778988649000,-614.0,0.00034726,2]
[422484475,1778988649000,-614.0,0.00034726,2]
[422484484,1778988649000,-614.0,0.00034726,2]
[422484483,1778988649000,-614.0,0.00034726,2]
[422484488,1778988649000,-614.0,0.00034726,2]
[422484487,1778988649000,-614.0,0.00034726,2]
[422484495,1778988649000,-614.0,0.00034726,2]
[422484496,1778988649000,-614.0,0.00034726,2]
[422484494,1778988649000,-614.0,0.00034726,2]
[422484486,1778988649000,-614.0,0.00034726,2]
[422484485,1778988649000,-614.0,0.00034726,2]
[422484491,1778988649000,-614.0,0.00034726,2]
[422484490,1778988649000,-614.0,0.00034726,2]
[422484492,1778988649000,-614.0,0.00034726,2]
[422484493,1778988649000,-614.0,0.00034726,2]
[422484489,1778988649000,-614.0,0.00034726,2]
[422484497,1778988649000,-614.0,0.00034726,2]
[422484504,1778988649000,-203.0,0.00034864,30]
[422484501,1778988649000,-3484.0,0.00034847,3]
[422484499,1778988649000,-1500.0,0.00034795,2]
[422484498,1778988649000,-620.79305125,0.00034726,2]
[422484505,1778988649000,-350.0,0.00034931,5]
[422484506,1778988649000,-1072.43246536,0.00034999,2]
[422484502,1778988649000,-320.0,0.00034864,30]
[422484503,1778988649000,-621.0,0.00034864,30]
[422484480,1778988649000,-614.0,0.00034726,2]
[422484478,1778988649000,-614.0,0.00034726,2]
[422484500,1778988649000,-3751.26317807,0.00034803,2]
[422484473,1778988649000,-371.02313261,0.00034726,4]
[422484474,1778988649000,-559.36032488,0.00034726,4]
[422484444,1778988649000,-150.0,0.00034726,2]
[422484445,1778988649000,-999.0,0.00034726,4]
[422484446,1778988649000,-1923.0,0.00034726,4]
[422484447,1778988649000,-540.0,0.00034726,4]
[422484451,1778988649000,-500.0,0.00034726,4]
[422484449,1778988649000,-500.0,0.00034726,4]
[422484453,1778988649000,-500.0,0.00034726,4]
[422484450,1778988649000,-500.0,0.00034726,4]
[422484454,1778988649000,-500.0,0.00034726,4]
[422484452,1778988649000,-500.0,0.00034726,4]
[422484456,1778988649000,-540.0,0.00034726,4]
[422484467,1778988649000,-1937.97526556,0.00034726,4]
[422484468,1778988649000,-1003.66007924,0.00034726,4]
[422484448,1778988649000,-500.0,0.00034726,4]
[422484455,1778988649000,-500.0,0.00034726,4]
[422484471,1778988649000,-500.0,0.00034726,4]
[422484466,1778988649000,-540.0,0.00034726,4]
[422484472,1778988649000,-500.0,0.00034726,4]
[422484465,1778988649000,-999.0,0.00034726,4]
[422484463,1778988649000,-540.0,0.00034726,4]
[422484460,1778988649000,-540.0,0.00034726,4]
[422484469,1778988649000,-500.0,0.00034726,4]
[422484462,1778988649000,-1923.0,0.00034726,4]
[422484457,1778988649000,-538.28826311,0.00034726,4]
[422484459,1778988649000,-1923.0,0.00034726,4]
[422484464,1778988649000,-1923.0,0.00034726,4]
[422484458,1778988649000,-999.0,0.00034726,4]
[422484470,1778988649000,-500.0,0.00034726,4]
[422484461,1778988649000,-999.0,0.00034726,4]
[422484539,1778988650000,-371.903411,0.00035547,7]
[422484538,1778988650000,-261.245373,0.00035547,7]
[422484535,1778988650000,-3751.26317807,0.00035547,2]
[422484542,1778988650000,-371.903411,0.00035547,7]
[422484543,1778988650000,-371.903411,0.00035547,7]
[422484537,1778988650000,-261.245373,0.00035547,7]
[422484540,1778988650000,-261.245373,0.00035547,7]
[422484545,1778988650000,-281.44,0.000356,120]
[422484544,1778988650000,-371.903411,0.00035547,7]
[422484546,1778988650000,-1721.04163998,0.00035616,30]
[422484541,1778988650000,-151.0,0.00035547,7]
[422484558,1778988650000,-1127.40473739,0.00035653,20]
[422484549,1778988650000,-1000.0,0.00035616,10]
[422484548,1778988650000,-561.41,0.00035616,2]
[422484557,1778988650000,-1107.59929093,0.00035653,20]
[422484550,1778988650000,-410.0,0.00035616,10]
[422484556,1778988650000,-3751.26317807,0.00035653,2]
[422484553,1778988650000,-150.0,0.0003562,30]
[422484551,1778988650000,-151.0,0.00035616,7]
[422484555,1778988650000,-216.03066,0.00035624,30]
[422484552,1778988650000,-165.28814421,0.00035616,2]
[422484536,1778988650000,-261.245373,0.00035547,7]
[422484554,1778988650000,-156.870283,0.0003562,30]
[422484547,1778988650000,-1096.31424344,0.00035616,60]
[422484533,1778988650000,-3751.26317807,0.00035512,2]
[422484519,1778988650000,-282.0,0.00035198,30]
[422484528,1778988650000,-8498.41124239,0.00035372,2]
[422484560,1778988650000,-1024.73439245,0.00035653,20]
[422484508,1778988650000,-1000.0,0.00035,120]
[422484507,1778988650000,-1082.57194751,0.00034999,7]
[422484509,1778988650000,-1081.81,0.00035,30]
[422484511,1778988650000,-3751.26317807,0.00035084,2]
[422484510,1778988650000,-1139.94493172,0.00035055,7]
[422484515,1778988650000,-159.0,0.00035167,30]
[422484513,1778988650000,-9004.33,0.000351,14]
[422484518,1778988650000,-154.0,0.00035198,30]
[422484512,1778988650000,-444.58,0.000351,30]
[422484517,1778988650000,-303.0,0.00035172,30]
[422484534,1778988650000,-2000.0,0.00035533,120]
[422484516,1778988650000,-154.0,0.00035167,30]
[422484521,1778988650000,-157.0,0.00035198,30]
[422484524,1778988650000,-160.0,0.000352,26]
[422484526,1778988650000,-180.62151535,0.0003526,14]
[422484523,1778988650000,-547.0,0.00035198,30]
[422484525,1778988650000,-1500.0,0.000352,7]
[422484527,1778988650000,-3751.26317807,0.00035342,2]
[422484531,1778988650000,-3751.26317807,0.00035438,2]
[422484532,1778988650000,-3751.26317807,0.00035469,2]
[422484529,1778988650000,-1000.0,0.00035373,27]
[422484522,1778988650000,-158.0,0.00035198,30]
[422484530,1778988650000,-3751.26317807,0.00035393,2]
[422484520,1778988650000,-436.0,0.00035198,30]
[422484570,1778988650000,-2097.96168442,0.00035868,5]
[422484514,1778988650000,-549.0,0.00035147,10]
[422484559,1778988650000,-1117.98696266,0.00035653,20]
[422484585,1778988650000,-1002.87303279,0.00036048,2]
[422484591,1778988650000,-2000.0,0.00036139,2]
[422484594,1778988650000,-2000.0,0.00036139,2]
[422484595,1778988650000,-2000.0,0.00036139,2]
[422484597,1778988650000,-2000.0,0.00036139,2]
[422484596,1778988650000,-2000.0,0.00036139,2]
[422484598,1778988650000,-167.528222,0.00036139,7]
[422484600,1778988650000,-167.528222,0.00036139,7]
[422484601,1778988650000,-167.528222,0.00036139,7]
[422484603,1778988650000,-1404.23803,0.00036139,7]
[422484607,1778988650000,-592.735492,0.00036139,7]
[422484587,1778988650000,-1000.0,0.00036082,4]
[422484602,1778988650000,-1404.23803,0.00036139,7]
[422484599,1778988650000,-167.528222,0.00036139,7]
[422484605,1778988650000,-1404.23803,0.00036139,7]
[422484609,1778988650000,-592.735492,0.00036139,7]
[422484611,1778988650000,-592.735492,0.00036139,7]
[422484608,1778988650000,-592.735492,0.00036139,7]
[422484612,1778988650000,-176.847513,0.00036139,7]
[422484615,1778988650000,-215.895752,0.00036139,7]
[422484610,1778988650000,-176.847513,0.00036139,7]
[422484614,1778988650000,-176.847513,0.00036139,7]
[422484613,1778988650000,-176.847513,0.00036139,7]
[422484561,1778988650000,-1017.4460815,0.00035653,20]
[422484604,1778988650000,-151.0,0.00036139,7]
[422484583,1778988650000,-1000.0,0.00036048,2]
[422484606,1778988650000,-1404.23803,0.00036139,7]
[422484590,1778988650000,-2000.0,0.00036139,2]
[422484562,1778988650000,-1072.79097112,0.00035653,20]
[422484586,1778988650000,-400.0,0.00036048,2]
[422484564,1778988650000,-1083.26847503,0.00035653,20]
[422484563,1778988650000,-1122.2920783,0.00035653,20]
[422484565,1778988650000,-3751.26317807,0.00035666,2]
[422484568,1778988650000,-1000.0,0.00035735,6]
[422484567,1778988650000,-206.783807,0.000357,12]
[422484569,1778988650000,-199.45,0.00035856,2]
[422484571,1778988650000,-1054.66420619,0.00035877,2]
[422484572,1778988650000,-350.0,0.0003589,5]
[422484576,1778988650000,-1223.0,0.00035975,2]
[422484573,1778988650000,-150.0,0.00035899,2]
[422484579,1778988650000,-249.06655,0.00036014,120]
[422484566,1778988650000,-549.0,0.00035681,11]
[422484588,1778988650000,-2000.0,0.00036139,2]
[422484589,1778988650000,-2000.0,0.00036139,2]
[422484574,1778988650000,-150.0,0.00035975,2]
[422484584,1778988650000,-400.0,0.00036048,2]
[422484581,1778988650000,-1000.0,0.00036048,2]
[422484592,1778988650000,-2000.0,0.00036139,2]
[422484593,1778988650000,-2000.0,0.00036139,2]
[422484580,1778988650000,-500.0,0.00036014,120]
[422484578,1778988650000,-6055.0,0.00035975,2]
[422484575,1778988650000,-1270.0,0.00035975,2]
[422484577,1778988650000,-625.0,0.00035975,2]
[422484582,1778988650000,-400.0,0.00036048,2]
[422484650,1778988651000,-303.0,0.00036172,30]
[422484655,1778988651000,-436.0,0.00036198,30]
[422484648,1778988651000,-159.0,0.00036167,30]
[422484652,1778988651000,-288.0,0.00036192,30]
[422484651,1778988651000,-1350.64566011,0.00036188,4]
[422484646,1778988651000,-12132.0,0.00036164,2]
[422484653,1778988651000,-154.0,0.00036198,30]
[422484644,1778988651000,-195.443125,0.00036164,7]
[422484647,1778988651000,-722.0,0.00036164,2]
[422484660,1778988651000,-549.0,0.00036214,11]
[422484654,1778988651000,-282.0,0.00036198,30]
[422484658,1778988651000,-547.0,0.00036198,30]
[422484669,1778988651000,-2126.743381,0.00036294,7]
[422484657,1778988651000,-158.0,0.00036198,30]
[422484656,1778988651000,-157.0,0.00036198,30]
[422484659,1778988651000,-160.0,0.000362,31]
[422484662,1778988651000,-151.0,0.00036294,7]
[422484665,1778988651000,-299.822509,0.00036294,7]
[422484664,1778988651000,-299.822509,0.00036294,7]
[422484663,1778988651000,-299.822509,0.00036294,7]
[422484666,1778988651000,-2126.743381,0.00036294,7]
[422484668,1778988651000,-2126.743381,0.00036294,7]
[422484670,1778988651000,-1214.62266919,0.00036309,2]
[422484667,1778988651000,-2126.743381,0.00036294,7]
[422484649,1778988651000,-154.0,0.00036167,30]
[422484661,1778988651000,-299.822509,0.00036294,7]
[422484645,1778988651000,-195.443125,0.00036164,7]
[422484616,1778988651000,-215.895752,0.00036139,7]
[422484643,1778988651000,-195.443125,0.00036164,7]
[422484619,1778988651000,-448.43651,0.00036139,7]
[422484674,1778988651000,-300.0,0.00036321,2]
[422484618,1778988651000,-215.895752,0.00036139,7]
[422484620,1778988651000,-448.43651,0.00036139,7]
[422484622,1778988651000,-448.43651,0.00036139,7]
[422484621,1778988651000,-2163.748438,0.00036139,7]
[422484631,1778988651000,-151.0,0.00036139,7]
[422484624,1778988651000,-448.43651,0.00036139,7]
[422484623,1778988651000,-2163.748438,0.00036139,7]
[422484629,1778988651000,-151.0,0.00036139,7]
[422484632,1778988651000,-151.0,0.00036139,7]
[422484630,1778988651000,-193.89311,0.00036139,7]
[422484626,1778988651000,-2163.748438,0.00036139,7]
[422484625,1778988651000,-2163.748438,0.00036139,7]
[422484628,1778988651000,-151.0,0.00036139,7]
[422484627,1778988651000,-151.0,0.00036139,7]
[422484634,1778988651000,-151.0,0.00036139,7]
[422484633,1778988651000,-193.89311,0.00036139,7]
[422484636,1778988651000,-505.4,0.00036153,30]
[422484637,1778988651000,-151.0,0.00036164,7]
[422484635,1778988651000,-193.89311,0.00036139,7]
[422484638,1778988651000,-151.0,0.00036164,7]
[422484639,1778988651000,-151.0,0.00036164,7]
[422484640,1778988651000,-151.0,0.00036164,7]
[422484641,1778988651000,-151.0,0.00036164,7]
[422484642,1778988651000,-195.443125,0.00036164,7]
[422484676,1778988651000,-1067.39759447,0.00036321,2]
[422484617,1778988651000,-215.895752,0.00036139,7]
[422484672,1778988651000,-300.0,0.00036321,2]
[422484702,1778988651000,-309.96996065,0.00036321,2]
[422484707,1778988651000,-300.0,0.00036321,2]
[422484708,1778988651000,-300.0,0.00036321,2]
[422484705,1778988651000,-300.0,0.00036321,2]
[422484709,1778988651000,-492.91797782,0.00036321,2]
[422484710,1778988651000,-300.0,0.00036321,2]
[422484714,1778988651000,-527.9795525,0.00036321,2]
[422484712,1778988651000,-604.73492277,0.00036321,2]
[422484713,1778988651000,-300.0,0.00036321,2]
[422484715,1778988651000,-1067.39759447,0.00036321,2]
[422484718,1778988651000,-301.92446648,0.00036321,2]
[422484711,1778988651000,-300.0,0.00036321,2]
[422484716,1778988651000,-893.8052833,0.00036321,2]
[422484720,1778988651000,-300.70672347,0.00036321,2]
[422484722,1778988651000,-300.0,0.00036321,2]
[422484721,1778988651000,-300.0,0.00036321,2]
[422484717,1778988651000,-726.3731759,0.00036321,2]
[422484719,1778988651000,-300.0,0.00036321,2]
[422484724,1778988651000,-949.41386656,0.00036321,2]
[422484723,1778988651000,-300.0,0.00036321,2]
[422484726,1778988651000,-1913.25849317,0.00036321,2]
[422484727,1778988651000,-344.12979214,0.00036321,2]
[422484725,1778988651000,-300.0,0.00036321,2]
[422484729,1778988651000,-300.0,0.00036321,2]
[422484730,1778988651000,-1147.71030809,0.00036321,2]
[422484704,1778988651000,-300.0,0.00036321,2]
[422484706,1778988651000,-1095.24427681,0.00036321,2]
[422484728,1778988651000,-527.12281632,0.00036321,2]
[422484703,1778988651000,-599.74983145,0.00036321,2]
[422484701,1778988651000,-484.30212364,0.00036321,2]
[422484671,1778988651000,-299.02,0.00036318,120]
[422484673,1778988651000,-604.73492277,0.00036321,2]
[422484679,1778988651000,-301.92446648,0.00036321,2]
[422484678,1778988651000,-726.3731759,0.00036321,2]
[422484677,1778988651000,-893.8052833,0.00036321,2]
[422484681,1778988651000,-300.70672347,0.00036321,2]
[422484680,1778988651000,-300.0,0.00036321,2]
[422484682,1778988651000,-300.0,0.00036321,2]
[422484683,1778988651000,-300.0,0.00036321,2]
[422484687,1778988651000,-344.12979214,0.00036321,2]
[422484685,1778988651000,-300.0,0.00036321,2]
[422484684,1778988651000,-949.41386656,0.00036321,2]
[422484675,1778988651000,-527.9795525,0.00036321,2]
[422484688,1778988651000,-527.12281632,0.00036321,2]
[422484686,1778988651000,-1913.25849317,0.00036321,2]
[422484700,1778988651000,-300.0,0.00036321,2]
[422484697,1778988651000,-300.0,0.00036321,2]
[422484695,1778988651000,-300.0,0.00036321,2]
[422484694,1778988651000,-464.05309097,0.00036321,2]
[422484689,1778988651000,-1147.71030809,0.00036321,2]
[422484696,1778988651000,-452.10208933,0.00036321,2]
[422484698,1778988651000,-300.0,0.00036321,2]
[422484690,1778988651000,-309.72976467,0.00036321,2]
[422484691,1778988651000,-864.84573435,0.00036321,2]
[422484693,1778988651000,-301.4150388,0.00036321,2]
[422484692,1778988651000,-311.04198967,0.00036321,2]
[422484699,1778988651000,-300.0,0.00036321,2]
[422484767,1778988652000,-172.24577485,0.00037,2]
[422484764,1778988652000,-448.44,0.00036956,10]
[422484761,1778988652000,-1253.2687,0.00036886,2]
[422484763,1778988652000,-374.19242021,0.00036906,120]
[422484768,1778988652000,-12975.5325,0.00037017,2]
[422484765,1778988652000,-173.0,0.00037,2]
[422484766,1778988652000,-1081.81,0.00037,30]
[422484760,1778988652000,-648.7766,0.00036886,2]
[422484762,1778988652000,-310.92400949,0.00036896,2]
[422484759,1778988652000,-12975.5325,0.00036886,2]
[422484774,1778988652000,-391.81872224,0.0003716,2]
[422484770,1778988652000,-1237.22508287,0.00037041,7]
[422484771,1778988652000,-1416.10821548,0.00037044,7]
[422484773,1778988652000,-12975.5325,0.00037149,2]
[422484772,1778988652000,-1000.0,0.00037099,35]
[422484746,1778988652000,-300.0,0.00036321,2]
[422484779,1778988652000,-549.0,0.00037282,13]
[422484778,1778988652000,-12975.5325,0.00037281,2]
[422484777,1778988652000,-154.29214092,0.000372,120]
[422484781,1778988652000,-152.0,0.00037382,7]
[422484776,1778988652000,-160.0,0.000372,36]
[422484775,1778988652000,-1000.0,0.00037199,36]
[422484769,1778988652000,-1225.63710326,0.00037041,2]
[422484753,1778988652000,-1000.0,0.00036416,32]
[422484756,1778988652000,-316.49017355,0.00036788,5]
[422484752,1778988652000,-478.5,0.000364,120]
[422484780,1778988652000,-152.0,0.00037308,7]
[422484734,1778988652000,-1791.55036629,0.00036321,2]
[422484731,1778988652000,-309.72976467,0.00036321,2]
[422484732,1778988652000,-864.84573435,0.00036321,2]
[422484733,1778988652000,-300.0,0.00036321,2]